bitfinex/quotes_BTCUSD_20241024
["timestamp","ask_amount","ask_price","bid_price","bid_amount"]
[1729789267746,0.57730869,67552.0,67551.0,0.002729]
[1729789268411,0.7278125,67552.0,67551.0,0.002729]
[1729789270361,0.7228125,67552.0,67551.0,0.002729]
[1729789270574,0.7278125,67552.0,67551.0,0.002729]
[1729789274999,0.72780765,67552.0,67551.0,0.002729]
[1729789276284,0.78788881,67552.0,67551.0,0.002729]
[1729789276498,0.72880233,67552.0,67551.0,0.002729]
[1729789276953,0.89981887,67552.0,67551.0,0.002729]
[1729789277384,0.89781887,67552.0,67551.0,0.002729]
[1729789277635,0.79336356,67552.0,67551.0,0.002729]
[1729789277881,0.58445294,67552.0,67551.0,0.002729]
[1729789278090,0.79336356,67552.0,67551.0,0.002729]
[1729789278308,0.51789171,67552.0,67551.0,0.002729]
[1729789278491,0.72680233,67552.0,67551.0,0.002729]
[1729789278800,0.79337466,67552.0,67551.0,0.002729]
[1729789279266,0.72680233,67552.0,67551.0,0.002729]
[1729789280637,0.51789171,67552.0,67551.0,0.002729]
[1729789280849,0.72680233,67552.0,67551.0,0.002729]
[1729789281980,0.81557056,67552.0,67551.0,0.002729]
[1729789282862,0.2817879,67552.0,67551.0,0.002729]
[1729789283086,0.24287438,67552.0,67551.0,0.002729]
[1729789284431,0.13841907,67552.0,67551.0,0.002729]
[1729789284656,0.24287438,67552.0,67551.0,0.101529]
[1729789285828,0.00165,67552.0,67551.0,0.183429]
[1729789286045,0.00165,67552.0,67551.0,0.496598]
[1729789286533,0.00165,67552.0,67551.0,0.50400417]
[1729789289294,0.00165,67552.0,67551.0,0.34393281]
[1729789289525,0.00165,67552.0,67551.0,0.34856147]
[1729789290451,0.00165,67552.0,67551.0,0.49659747]
[1729789292696,0.00165,67552.0,67551.0,0.34856147]
[1729789293331,0.149684,67552.0,67551.0,0.34856147]
[1729789295970,0.00165,67552.0,67551.0,0.34856147]
[1729789297329,0.149684,67552.0,67551.0,0.34856147]
[1729789300363,0.149684,67552.0,67551.0,0.3485616]
[1729789307533,0.149684,67552.0,67551.0,0.34393281]
[1729789307752,0.149684,67552.0,67551.0,0.3485616]
[1729789307984,0.149684,67552.0,67551.0,0.12115779]
[1729789308418,0.149684,67552.0,67551.0,0.12856386]
[1729789313255,0.149684,67552.0,67551.0,0.12356386]
[1729789313508,0.25413931,67552.0,67551.0,0.00735779]
[1729789313768,0.25413931,67552.0,67551.0,0.012729]
[1729789314019,0.25413931,67552.0,67551.0,0.007729]
[1729789315414,0.25413931,67552.0,67551.0,0.01235834]
[1729789316524,0.25413931,67552.0,67551.0,0.00545534]
[1729789316744,0.25413931,67552.0,67551.0,0.00545528]
[1729789317458,0.25413931,67552.0,67551.0,0.000826]
[1729789319658,0.35859462,67552.0,67551.0,0.000826]
[1729789319882,0.63709462,67552.0,67551.0,0.000826]
[1729789320135,0.78759843,67552.0,67551.0,0.000826]
[1729789321067,0.79259843,67552.0,67551.0,0.000826]
[1729789324231,0.58354312,67552.0,67551.0,0.000826]
[1729789324437,0.68799843,67552.0,67551.0,0.000826]
[1729789325502,0.53749462,67552.0,67551.0,0.000826]
[1729789326146,0.68799843,67552.0,67551.0,0.000826]
[1729789326364,0.89115374,67552.0,67551.0,0.000826]
[1729789326580,0.78669843,67552.0,67551.0,0.000826]
[1729789327852,0.88915374,67552.0,67551.0,0.000826]
[1729789328068,0.78469843,67552.0,67551.0,0.000826]
[1729789328281,0.93670854,67552.0,67551.0,0.000826]
[1729789328506,1.04116385,67552.0,67551.0,0.000826]
[1729789328704,0.93670854,67552.0,67551.0,0.000826]
[1729789329375,1.04116385,67552.0,67551.0,0.000826]
[1729789329631,0.93670854,67552.0,67551.0,0.000826]
[1729789330183,0.93670854,67552.0,67545.0,0.000826]
[1729789330184,0.53975762,67546.0,67545.0,0.000826]
[1729789330430,0.78346143,67546.0,67545.0,0.000826]
[1729789330672,0.78546143,67546.0,67545.0,0.000826]
[1729789331385,0.78346143,67546.0,67545.0,0.000826]
[1729789332090,0.78546143,67546.0,67545.0,0.000826]
[1729789333036,0.93596524,67546.0,67545.0,0.000826]
[1729789333950,0.93596524,67546.0,67538.0,0.000837]
[1729789333951,0.005,67541.0,67538.0,0.000837]
[1729789334183,0.46197262,67539.0,67538.0,0.000837]
[1729789334395,0.61447643,67539.0,67538.0,0.000837]
[1729789335140,0.61247643,67539.0,67538.0,0.000837]
[1729789336656,0.61447643,67539.0,67538.0,0.000837]
[1729789336889,0.70537643,67539.0,67538.0,0.000837]
[1729789337872,0.92683094,67539.0,67538.0,0.000837]
[1729789338111,0.92683094,67539.0,67522.0,0.0929]
[1729789338112,0.255064,67538.0,67522.0,0.0929]
[1729789338324,0.48336781,67538.0,67522.0,0.0929]
[1729789338771,0.148097,67523.0,67522.0,0.0929]
[1729789339005,0.35700762,67523.0,67522.0,0.0929]
[1729789339231,0.35700762,67523.0,67522.0,0.0979]
[1729789339441,0.35700762,67523.0,67522.0,0.0929]
[1729789340095,0.25255231,67523.0,67522.0,0.0929]
[1729789340304,0.35700762,67523.0,67522.0,0.0929]
[1729789340523,0.25255231,67523.0,67522.0,0.0929]
[1729789341568,0.25255231,67523.0,67522.0,0.0979]
[1729789345238,0.35700762,67523.0,67522.0,0.0979]
[1729789346099,0.35700762,67523.0,67522.0,0.0929]
[1729789347424,0.20891062,67523.0,67521.0,0.005]
[1729789347636,0.444299,67522.0,67521.0,0.005]
[1729789348117,0.444299,67522.0,67519.0,0.000837]
[1729789348118,0.148104,67520.0,67519.0,0.000837]
[1729789348332,0.25255931,67520.0,67519.0,0.000837]
[1729789349223,0.148104,67520.0,67519.0,0.000837]
[1729789349436,0.25255931,67520.0,67519.0,0.000837]
[1729789350763,0.35255931,67520.0,67519.0,0.000837]
[1729789351011,0.47760781,67520.0,67519.0,0.000837]
[1729789356030,0.148104,67520.0,67519.0,0.100037]
[1729789356254,0.25255931,67520.0,67519.0,0.100037]
[1729789356696,0.25255931,67520.0,67519.0,0.000837]
[1729789357137,0.93583869,67520.0,67519.0,0.000837]
[1729789357349,0.81247938,67520.0,67519.0,0.000837]
[1729789357591,0.48440301,67520.0,67519.0,0.000837]
[1729789358678,0.230219,67513.0,67512.0,0.0180108]
[1729789358919,0.53912962,67513.0,67512.0,0.0180108]
[1729789359357,0.68963343,67513.0,67512.0,0.0180108]
[1729789360870,0.248119,67513.0,67512.0,0.0180108]
[1729789361081,0.35257431,67513.0,67512.0,0.0180108]
[1729789362273,0.35257431,67513.0,67512.0,0.0188358]
[1729789370180,0.25257431,67513.0,67512.0,0.0188358]
[1729789381099,0.72898794,67513.0,67512.0,0.0188358]
[1729789381316,0.58513343,67513.0,67512.0,0.0188358]
[1729789381529,0.48067812,67513.0,67512.0,0.0188358]
[1729789382179,0.58513343,67513.0,67512.0,0.0188358]
[1729789382613,0.68513343,67513.0,67512.0,0.0188358]
[1729789383263,0.68513343,67513.0,67506.0,0.000837]
[1729789383264,0.148132,67507.0,67506.0,0.000837]
[1729789383478,0.65934643,67507.0,67506.0,0.000837]
[1729789383733,0.45043581,67507.0,67506.0,0.000837]
[1729789384184,0.45243581,67507.0,67506.0,0.000837]
[1729789384634,0.45743581,67507.0,67506.0,0.000837]
[1729789384844,0.45543581,67507.0,67506.0,0.000837]
[1729789385288,0.55133581,67507.0,67506.0,0.000837]
[1729789385520,0.148163,67493.0,67492.0,0.005]
[1729789385736,0.25261831,67493.0,67492.0,0.005]
[1729789385948,0.148165,67492.0,67491.0,0.005838]
[1729789386169,0.148165,67492.0,67491.0,0.000838]
[1729789386599,0.36961951,67492.0,67491.0,0.000838]
[1729789386829,0.148165,67492.0,67491.0,0.000838]
[1729789387333,0.248165,67492.0,67491.0,0.000838]
[1729789388246,0.40010466,67492.0,67491.0,0.000838]
[1729789388799,0.40010466,67492.0,67489.0,9e-05]
[1729789388800,0.14817,67490.0,67489.0,9e-05]
[1729789388968,0.40367381,67490.0,67489.0,9e-05]
[1729789394113,0.40567381,67490.0,67489.0,9e-05]
[1729789395349,0.62712832,67490.0,67489.0,9e-05]
[1729789395598,0.40567381,67490.0,67489.0,9e-05]
[1729789396837,0.70811728,67490.0,67489.0,9e-05]
[1729789397066,0.55617762,67490.0,67489.0,9e-05]
[1729789397563,0.55617762,67490.0,67470.0,0.000838]
[1729789397564,0.153196,67478.0,67470.0,0.000838]
[1729789397822,0.248211,67471.0,67470.0,0.000838]
[1729789398060,0.55065447,67471.0,67470.0,0.000838]
[1729789398296,0.55265447,67471.0,67470.0,0.000838]
[1729789398791,0.55265447,67471.0,67453.0,0.0823]
[1729789398792,0.002,67468.0,67460.0,0.0001001]
[1729789399087,0.55211232,67461.0,67460.0,0.0001001]
[1729789399320,0.70261613,67461.0,67460.0,0.0001001]
[1729789400796,0.148246,67455.0,67451.0,0.005]
[1729789401017,0.30018566,67455.0,67451.0,0.005]
[1729789402128,0.30018566,67455.0,67447.0,0.0791]
[1729789402353,0.30018566,67455.0,67451.0,0.005]
[1729789403693,0.148246,67455.0,67451.0,0.005]
[1729789403929,0.592948,67460.0,67455.0,0.01]
[1729789403930,0.296474,67460.0,67455.0,0.01]
[1729789404158,0.22145451,67459.0,67458.0,0.005]
[1729789404396,0.36969251,67459.0,67458.0,0.005]
[1729789404603,0.148238,67459.0,67458.0,0.005]
[1729789405689,0.148244,67456.0,67455.0,0.015]
[1729789406333,0.00883349,67473.0,67454.0,0.175438]
[1729789406334,0.296457,67464.0,67458.0,0.015]
[1729789406546,0.15193966,67467.0,67460.0,0.005]
[1729789406547,0.36968751,67461.0,67460.0,0.005]
[1729789406832,0.148233,67461.0,67460.0,0.005]
[1729789407973,0.148233,67461.0,67460.0,0.015]
[1729789408186,0.15193966,67470.0,67462.0,0.01]
[1729789408395,0.148229,67463.0,67462.0,0.01]
[1729789411624,0.59662166,67464.0,67463.0,0.01]
[1729789412116,0.59662166,67464.0,67463.0,0.015]
[1729789412353,0.59662166,67464.0,67463.0,0.01]
[1729789413515,0.59662166,67464.0,67463.0,0.005]
[1729789413516,0.444682,67464.0,67463.0,0.005]
[1729789414196,0.15193966,67467.0,67464.0,0.0803]
[1729789414197,0.148225,67465.0,67464.0,0.0803]
[1729789414542,0.148225,67465.0,67464.0,0.1714]
[1729789414796,0.148225,67465.0,67464.0,0.005]
[1729789415037,0.148225,67465.0,67463.0,0.005]
[1729789415038,0.148227,67464.0,67463.0,0.005]
[1729789415338,0.15193966,67467.0,67464.0,0.005]
[1729789415524,0.105,67476.0,67458.0,0.000825]
[1729789415525,0.148238,67459.0,67458.0,0.005825]
[1729789415782,0.30017766,67459.0,67458.0,0.005825]
[1729789418140,0.296454,67464.0,67462.0,0.005]
[1729789418364,0.36968351,67463.0,67462.0,0.005]
[1729789418582,0.444688,67463.0,67462.0,0.005]
[1729789419009,0.148229,67463.0,67462.0,0.005]
[1729789420922,0.30016866,67463.0,67462.0,0.005]
[1729789421423,0.148229,67463.0,67462.0,0.005]
[1729789421666,0.148229,67463.0,67462.0,0.0961]
[1729789422679,0.30016866,67463.0,67462.0,0.0961]
[1729789423411,0.148229,67463.0,67462.0,0.0961]
[1729789424376,0.148229,67463.0,67462.0,0.1734]
[1729789424621,0.148229,67463.0,67462.0,0.1834]
[1729789425124,0.30016866,67463.0,67462.0,0.1834]
[1729789427312,0.15193966,67463.0,67462.0,0.1834]
[1729789428221,0.296448,67466.0,67462.0,0.1834]
[1729789428222,0.148227,67464.0,67462.0,0.1834]
[1729789428452,0.148227,67464.0,67463.0,0.005]
[1729789430513,0.148227,67464.0,67463.0,0.01]
[1729789431376,0.148227,67464.0,67463.0,0.015]
[1729789433384,0.225527,67464.0,67463.0,0.015]
[1729789433616,0.225527,67464.0,67463.0,0.01]
[1729789433855,0.37746666,67464.0,67463.0,0.005]
[1729789434724,0.67392166,67464.0,67463.0,0.005]
[1729789435383,0.52569466,67464.0,67463.0,0.005]
[1729789435598,0.67392166,67464.0,67463.0,0.005]
[1729789436262,0.59662166,67464.0,67463.0,0.005]
[1729789438078,0.444682,67464.0,67463.0,0.005]
[1729789438273,0.444668,67466.0,67465.0,0.005]
[1729789438711,0.148221,67467.0,67465.0,0.005]
[1729789439172,0.296438,67468.0,67465.0,0.005]
[1729789439386,0.148219,67468.0,67467.0,0.015]
[1729789440500,0.15193966,67469.0,67462.0,0.400825]
[1729789440501,0.148229,67463.0,67462.0,0.400825]
[1729789441423,0.29645,67465.0,67464.0,0.09983134]
[1729789441668,0.59661466,67465.0,67464.0,0.09983134]
[1729789442560,1.17735813,67465.0,67464.0,0.09983134]
[1729789442771,1.02541847,67465.0,67464.0,0.09983134]
[1729789445168,0.92771847,67465.0,67464.0,0.09983134]
[1729789445416,0.69661466,67465.0,67464.0,0.09983134]
[1729789446344,0.69661466,67465.0,67464.0,0.10065734]
[1729789448930,0.39873281,67463.0,67462.0,0.000825]
[1729789450787,0.77212698,67463.0,67462.0,0.000825]
[1729789451013,0.55067247,67463.0,67462.0,0.000825]
[1729789451461,0.39873281,67463.0,67462.0,0.000825]
[1729789452579,0.148229,67463.0,67462.0,0.000825]
[1729789454139,0.148229,67463.0,67462.0,0.005825]
[1729789455007,0.296454,67464.0,67462.0,0.005825]
[1729789455008,0.148228,67464.0,67463.0,0.005]
[1729789455457,0.22145451,67467.0,67463.0,0.005]
[1729789455678,0.298078,67470.0,67465.0,0.005]
[1729789455679,0.148222,67466.0,67465.0,0.005]
[1729789455895,0.148216,67469.0,67468.0,0.005]
[1729789456541,0.00165,67470.0,67469.0,0.005]
[1729789456776,0.00165,67470.0,67469.0,0.015]
[1729789457949,0.00165,67470.0,67469.0,0.163216]
[1729789458403,0.00165,67470.0,67469.0,0.31371981]
[1729789458621,0.00165,67470.0,67469.0,0.41021981]
[1729789459958,0.00165,67470.0,67469.0,0.41485412]
[1729789460160,0.00165,67470.0,67469.0,0.41021981]
[1729789461751,0.00165,67470.0,67469.0,0.43321981]
[1729789469411,0.00165,67470.0,67469.0,0.43821981]
[1729789469645,0.00165,67470.0,67469.0,0.45285376]
[1729789470119,0.00165,67470.0,67469.0,0.44821981]
[1729789470796,0.00165,67470.0,67469.0,0.45700818]
[1729789471036,0.00165,67470.0,67469.0,0.44821981]
[1729789477754,0.00165,67470.0,67469.0,0.45285363]
[1729789478857,0.00165,67470.0,67469.0,0.44821981]
[1729789479309,0.00165,67470.0,67469.0,0.45285368]
[1729789480033,0.00165,67470.0,67469.0,0.44821981]
[1729789480255,0.00165,67470.0,67469.0,0.45285387]
[1729789480723,0.00165,67470.0,67469.0,0.44821981]
[1729789480975,0.00165,67470.0,67469.0,0.45285381]
[1729789484155,0.00165,67470.0,67469.0,0.63115381]
[1729789484655,0.00165,67470.0,67469.0,0.67064481]
[1729789484925,0.00165,67470.0,67469.0,0.63115327]
[1729789485426,0.00165,67470.0,67469.0,0.94583935]
[1729789485942,0.00165,67477.0,67476.0,0.78487932]
[1729789486184,0.00165,67477.0,67476.0,0.94001659]
[1729789486415,0.22145451,67483.0,67482.0,0.180187]
[1729789486680,0.22145451,67483.0,67482.0,0.68806313]
[1729789486912,2.0,67500.0,67496.0,0.1125]
[1729789487144,2.0,67500.0,67496.0,0.59109947]
[1729789487399,2.0,67500.0,67496.0,0.59573183]
[1729789487894,2.0,67500.0,67499.0,0.19115]
[1729789488164,2.0,67500.0,67499.0,0.52408617]
[1729789488417,2.0,67500.0,67499.0,0.44378617]
[1729789491175,2.0,67500.0,67499.0,0.45378617]
[1729789491665,2.0,67500.0,67499.0,0.68212583]
[1729789492126,2.0,67500.0,67499.0,0.78412583]
[1729789492373,2.0,67500.0,67499.0,0.93606549]
[1729789492604,2.0,67500.0,67499.0,0.82808531]
[1729789492833,2.0,67500.0,67499.0,0.98002688]
[1729789493059,2.0,67500.0,67499.0,0.93606549]
[1729789493314,2.0,67500.0,67499.0,0.78212583]
[1729789493575,2.0,67500.0,67499.0,0.82806764]
[1729789493825,2.0,67500.0,67499.0,0.78412583]
[1729789494066,2.0,67500.0,67499.0,0.93606549]
[1729789495022,2.0,67500.0,67499.0,1.16415008]
[1729789495268,2.0,67500.0,67499.0,1.16415086]
[1729789495516,2.0,67500.0,67499.0,1.09822489]
[1729789495999,2.0,67500.0,67499.0,1.16410783]
[1729789496224,2.00165,67500.0,67499.0,1.09822489]
[1729789496487,2.00165,67500.0,67499.0,1.18612413]
[1729789497523,1.75538835,67500.0,67499.0,0.93606395]
[1729789497755,1.75538835,67500.0,67499.0,1.00193156]
[1729789497986,1.75538835,67500.0,67499.0,1.09812214]
[1729789498692,1.75538835,67500.0,67499.0,1.09812196]
[1729789499155,1.75538835,67500.0,67499.0,1.18594537]
[1729789499612,1.75538835,67500.0,67499.0,1.09812196]
[1729789500310,1.75538835,67500.0,67499.0,1.18594537]
[1729789500529,1.15077179,67500.0,67499.0,1.09812196]
[1729789500745,0.87961474,67500.0,67499.0,1.18594537]
[1729789500959,0.87961474,67500.0,67499.0,1.09812196]
[1729789501426,0.87961474,67500.0,67499.0,1.18591283]
[1729789501855,0.87961474,67500.0,67499.0,1.09812196]
[1729789502073,0.87961474,67500.0,67499.0,1.96240569]
[1729789502332,0.87961474,67500.0,67499.0,1.48984184]
[1729789502579,0.84976474,67500.0,67499.0,1.48984184]
[1729789502802,0.28368869,67500.0,67499.0,1.6417815]
[1729789503036,0.22145451,67514.0,67513.0,0.3329]
[1729789503255,0.15378846,67514.0,67513.0,0.79191377]
[1729789503483,0.00165,67519.0,67513.0,0.79191377]
[1729789503484,0.00165,67519.0,67518.0,0.270108]
[1729789503745,0.00165,67519.0,67518.0,0.85508331]
[1729789503987,0.00165,67519.0,67518.0,0.85953022]
[1729789504224,0.00165,67519.0,67518.0,0.86153022]
[1729789504442,0.00165,67519.0,67518.0,0.84949113]
[1729789504657,0.00165,67519.0,67518.0,0.86152851]
[1729789505348,0.00165,67519.0,67518.0,0.87048758]
[1729789508298,0.001678,67536.0,67531.0,0.022]
[1729789508503,0.001678,67536.0,67531.0,0.59495302]
[1729789508718,0.001678,67536.0,67531.0,0.60495302]
[1729789510256,0.001678,67536.0,67531.0,0.68685302]
[1729789510473,0.001678,67536.0,67531.0,0.69426031]
[1729789511143,0.001678,67536.0,67531.0,0.61236031]
[1729789511401,0.001678,67536.0,67531.0,0.61404254]
[1729789512059,0.001678,67536.0,67531.0,0.60495302]
[1729789512278,0.001678,67536.0,67531.0,0.50815302]
[1729789512501,0.001678,67536.0,67531.0,0.35621336]
[1729789513414,0.001678,67536.0,67531.0,0.36362065]
[1729789515242,0.001678,67536.0,67531.0,0.36362025]
[1729789515957,0.001678,67536.0,67531.0,0.51555991]
[1729789517262,0.001678,67536.0,67531.0,0.36362025]
[1729789519512,0.001678,67536.0,67535.0,0.168071]
[1729789519721,0.001678,67536.0,67535.0,0.35361125]
[1729789528573,0.001678,67536.0,67535.0,0.39748131]
[1729789529538,0.001678,67536.0,67535.0,0.35361125]
[1729789529755,0.001678,67536.0,67535.0,0.45162112]
[1729789530194,0.001678,67536.0,67535.0,0.36361018]
[1729789531311,0.001678,67536.0,67535.0,0.48248025]
[1729789531498,0.001678,67536.0,67535.0,0.43852784]
[1729789531999,0.001678,67536.0,67535.0,0.41971327]
[1729789532212,0.001678,67536.0,67535.0,0.42971327]
[1729789532643,0.00734869,67536.0,67535.0,0.42971327]
[1729789533503,0.001678,67536.0,67535.0,0.42971327]
[1729789533716,0.00734392,67536.0,67535.0,0.42971327]
[1729789534139,0.00734392,67536.0,67535.0,0.4297152]
[1729789534367,0.00734392,67536.0,67535.0,0.36361018]
[1729789535457,0.00734392,67536.0,67535.0,0.45175021]
[1729789536310,0.00734392,67536.0,67535.0,0.36361018]
[1729789536848,0.00734392,67536.0,67535.0,0.21553918]
[1729789537056,0.00734392,67536.0,67535.0,0.02203537]
[1729789537057,0.38385258,67536.0,67535.0,0.02203537]
[1729789537275,0.38385258,67536.0,67535.0,0.02703537]
[1729789537917,0.38385258,67536.0,67535.0,0.01963018]
[1729789538147,0.38385258,67536.0,67535.0,0.02703848]
[1729789538569,0.23191292,67536.0,67535.0,0.0270386]
[1729789539207,0.23191292,67536.0,67535.0,0.0170386]
[1729789539208,0.38385258,67536.0,67535.0,0.0170386]
[1729789540280,0.38385258,67536.0,67535.0,0.00963023]
[1729789540502,0.38385258,67536.0,67535.0,0.01463023]
[1729789541437,0.38385258,67536.0,67535.0,0.015]
[1729789541654,0.38385258,67536.0,67535.0,0.0196303]
[1729789542335,0.38385258,67536.0,67535.0,0.01]
[1729789542557,0.38385258,67536.0,67535.0,0.015]
[1729789543868,0.23191292,67536.0,67535.0,0.015]
[1729789544868,0.38385258,67536.0,67535.0,0.015]
[1729789551261,0.148075,67533.0,67532.0,0.015825]
[1729789551477,0.322375,67533.0,67532.0,0.000825]
[1729789551698,0.32798071,67533.0,67532.0,0.000825]
[1729789552364,0.4325274,67533.0,67532.0,0.000825]
[1729789553477,0.4325274,67533.0,67532.0,0.005825]
[1729789553705,0.4325274,67533.0,67532.0,0.000825]
[1729789554337,0.47970364,67533.0,67532.0,0.000825]
[1729789557178,0.85166196,67533.0,67532.0,0.000825]
[1729789557457,0.63020745,67533.0,67532.0,0.000825]
[1729789557675,0.73020745,67533.0,67532.0,0.000825]
[1729789558581,0.73020745,67533.0,67519.0,0.000825]
[1729789558582,1.10838489,67533.0,67519.0,0.000825]
[1729789558799,0.47332693,67520.0,67519.0,0.000825]
[1729789563091,0.321604,67520.0,67519.0,0.000825]
[1729789563322,0.62383074,67520.0,67519.0,0.000825]
[1729789563538,0.38235493,67507.0,67506.0,0.22145451]
[1729789563977,0.148148,67500.0,67499.0,0.005825]
[1729789564203,0.29987093,67500.0,67499.0,0.005825]
[1729789564428,0.53129386,67500.0,67499.0,0.000825]
[1729789566859,0.37957093,67500.0,67499.0,0.000825]
[1729789568949,0.75274837,67500.0,67499.0,0.000825]
[1729789569133,0.53129386,67500.0,67499.0,0.000825]
[1729789575066,0.37957093,67500.0,67499.0,0.000825]
[1729789576647,0.29987093,67500.0,67499.0,0.000825]
[1729789577525,0.148148,67500.0,67499.0,0.015825]
[1729789577774,0.148148,67500.0,67499.0,0.110625]
[1729789580658,0.148134,67506.0,67505.0,0.015]
[1729789580869,0.36958851,67506.0,67505.0,0.015]
[1729789581086,0.148134,67506.0,67505.0,0.015]
[1729789581766,0.148134,67506.0,67505.0,0.01963221]
[1729789582963,0.148134,67506.0,67505.0,0.01963223]
[1729789586776,0.148134,67506.0,67505.0,0.01963226]
[1729789590205,0.148134,67506.0,67505.0,0.015]
[1729789590427,0.148134,67506.0,67505.0,0.01963227]
[1729789590957,0.35142293,67520.0,67505.0,0.01963227]
[1729789590958,0.444374,67511.0,67510.0,0.015]
[1729789591646,0.444374,67511.0,67510.0,0.01963188]
[1729789592780,0.444374,67511.0,67510.0,0.015]
[1729789598006,0.14813,67508.0,67507.0,0.015]
[1729789598251,0.29985293,67508.0,67507.0,0.015]
[1729789600663,0.14813,67508.0,67507.0,0.015]
[1729789604470,0.14813,67508.0,67507.0,0.01963216]
[1729789605380,0.0773,67515.0,67507.0,0.01963216]
[1729789605381,0.0823,67522.0,67513.0,0.01]
[1729789605603,0.0823,67522.0,67508.0,0.0762]
[1729789605604,0.22145451,67531.0,67518.0,0.015]
[1729789605830,0.22145451,67531.0,67518.0,0.24394016]
[1729789605831,0.296183,67526.0,67518.0,0.24394016]
[1729789606083,0.296183,67526.0,67518.0,0.2513499]
[1729789606084,0.148097,67523.0,67518.0,0.2513499]
[1729789606308,0.296183,67526.0,67518.0,0.25134832]
[1729789606753,0.296183,67526.0,67518.0,0.49585213]
[1729789606976,0.148097,67524.0,67518.0,0.49585213]
[1729789607243,0.148097,67523.0,67518.0,0.49585213]
[1729789607664,0.296181,67527.0,67518.0,0.49585213]
[1729789608112,0.296191,67524.0,67518.0,0.49585213]
[1729789608329,0.1481,67522.0,67518.0,0.49585213]
[1729789608623,0.148102,67521.0,67518.0,0.49585213]
[1729789608841,0.01108997,67519.0,67518.0,0.34774413]
[1729789609062,0.01108997,67519.0,67518.0,0.49585213]
[1729789609512,0.01108997,67519.0,67518.0,0.4884427]
[1729789609740,0.01108997,67519.0,67518.0,0.49585213]
[1729789609967,0.01108997,67519.0,67518.0,0.4884427]
[1729789610182,0.01108997,67519.0,67518.0,0.53385213]
[1729789610833,0.01108997,67519.0,67518.0,0.35274413]
[1729789611482,0.01108997,67519.0,67518.0,0.3453347]
[1729789611930,0.01108997,67519.0,67518.0,0.35274413]
[1729789612144,0.01108997,67519.0,67518.0,0.3453347]
[1729789613070,0.01108997,67519.0,67518.0,0.3403347]
[1729789613297,0.01108997,67519.0,67518.0,0.4934427]
[1729789613564,0.01108997,67519.0,67518.0,0.48881181]
[1729789613769,0.01108997,67519.0,67518.0,0.52144257]
[1729789613989,0.01108997,67519.0,67518.0,0.52644257]
[1729789618277,0.01108997,67519.0,67518.0,0.51644257]
[1729789618505,0.01108997,67519.0,67518.0,0.52644257]
[1729789619608,0.01108997,67519.0,67518.0,0.37833457]
[1729789620043,0.01108997,67519.0,67518.0,0.52644257]
[1729789620910,0.01108997,67519.0,67518.0,0.52644256]
[1729789621556,0.01108997,67519.0,67518.0,0.36833456]
[1729789621783,0.01108997,67519.0,67518.0,0.37833456]
[1729789622003,0.01108997,67519.0,67518.0,0.52144256]
[1729789622469,0.01108997,67519.0,67518.0,0.51644256]
[1729789626135,0.01108997,67519.0,67518.0,0.44024256]
[1729789627299,0.01108997,67519.0,67518.0,0.44024269]
[1729789628215,0.01108997,67519.0,67518.0,0.43561181]
[1729789628464,0.01108997,67519.0,67518.0,0.44024267]
[1729789630355,0.01108997,67519.0,67518.0,0.29213467]
[1729789630593,0.01108997,67519.0,67518.0,0.29954405]
[1729789631075,0.15919597,67519.0,67518.0,0.27154405]
[1729789631296,0.15919597,67519.0,67518.0,0.16550381]
[1729789631541,0.01108997,67519.0,67518.0,0.17754415]
[1729789631787,0.15919597,67519.0,67518.0,0.17754415]
[1729789632241,0.01108997,67519.0,67518.0,0.17754415]
[1729789632486,0.15919597,67519.0,67518.0,0.17754415]
[1729789632731,0.01108997,67519.0,67518.0,0.32565215]
[1729789632958,0.01108997,67519.0,67518.0,0.17754415]
[1729789633194,0.15919597,67519.0,67518.0,0.17754415]
[1729789636954,0.15919597,67519.0,67518.0,0.17836915]
[1729789638381,0.24069597,67519.0,67518.0,0.17836915]
[1729789638602,0.33229597,67519.0,67518.0,0.0054559]
[1729789638831,0.33229597,67519.0,67518.0,0.000825]
[1729789639326,0.15919597,67519.0,67518.0,0.000825]
[1729789639570,0.15919597,67519.0,67518.0,0.015825]
[1729789640042,0.15919597,67519.0,67518.0,0.02045651]
[1729789640523,0.01108997,67519.0,67518.0,0.02045651]
[1729789640794,0.01108997,67519.0,67518.0,0.32647847]
[1729789641031,0.01108997,67519.0,67518.0,0.41717847]
[1729789646542,0.01108997,67519.0,67518.0,0.40976832]
[1729789646803,0.01108997,67519.0,67518.0,0.41717725]
[1729789648383,0.01108997,67519.0,67518.0,0.26906925]
[1729789650409,0.01108997,67519.0,67518.0,0.25702881]
[1729789650668,0.01108997,67519.0,67518.0,0.27203116]
[1729789650933,0.01108997,67519.0,67518.0,0.26906925]
[1729789651170,0.01108997,67519.0,67518.0,0.41717725]
[1729789652137,0.01108997,67519.0,67518.0,0.44517725]
[1729789653320,0.01108997,67519.0,67518.0,0.43313681]
[1729789654735,0.01108997,67519.0,67518.0,0.44517716]
[1729789654966,0.01108997,67519.0,67518.0,0.4421862]
[1729789655184,0.01108997,67519.0,67518.0,0.45422644]
[1729789655857,0.01108997,67519.0,67518.0,0.49850611]
[1729789656337,0.01108997,67519.0,67518.0,0.48945672]
[1729789656560,0.01108997,67519.0,67518.0,0.43313681]
[1729789656795,0.01108997,67519.0,67518.0,0.28502881]
[1729789657051,0.01108997,67519.0,67518.0,0.43313681]
[1729789657335,0.01108997,67519.0,67518.0,0.44517719]
[1729789657796,0.01108997,67519.0,67518.0,0.44054628]
[1729789658039,0.01108997,67519.0,67518.0,0.44517721]
[1729789660344,0.01108997,67519.0,67518.0,0.48955785]
[1729789661288,0.01108997,67519.0,67518.0,0.67066818]
[1729789661541,0.01108997,67519.0,67518.0,0.63501657]
[1729789661788,0.01108997,67519.0,67518.0,0.76815851]
[1729789662028,0.01108997,67519.0,67518.0,0.63501657]
[1729789662274,0.01108997,67519.0,67518.0,0.9746072]
[1729789662482,0.01108997,67519.0,67518.0,0.88774212]
[1729789662729,0.01108997,67519.0,67518.0,0.84155593]
[1729789663423,0.01108997,67519.0,67518.0,0.73701324]
[1729789664557,0.01108997,67519.0,67518.0,0.86984002]
[1729789665048,0.01108997,67519.0,67518.0,0.86784002]
[1729789665513,0.01108997,67519.0,67518.0,0.73501324]